bitfinex/quotes_ETHUSD_20241120
["timestamp","ask_amount","ask_price","bid_price","bid_amount"]
[1732077836914,0.7892,3095.4,3095.0,1.03734923]
[1732077846383,0.7892,3095.4,3095.1,0.96926]
[1732077846596,0.7892,3095.4,3095.2,0.06804213]
[1732077846792,1.191162,3095.4,3095.2,0.06804213]
[1732077849917,0.7892,3095.4,3095.1,0.96926]
[1732077850122,0.7892,3095.4,3095.3,0.06803603]
[1732077850454,0.7892,3095.4,3095.3,0.06803556]
[1732077850920,0.7892,3095.4,3095.0,0.9693]
[1732077851122,0.7892,3095.4,3095.3,0.06803556]
[1732077851310,1.191159,3095.4,3095.0,0.9693]
[1732077851809,1.191159,3095.4,3095.1,0.06804776]
[1732077852307,0.7892,3095.4,3095.1,1.03731776]
[1732077852514,0.7892,3095.4,3095.2,0.96923]
[1732077852820,0.8237,3095.7,3095.3,0.06578012]
[1732077853023,4.05402,3095.7,3095.0,0.96928]
[1732077853233,4.05402,3095.7,3095.1,0.06579232]
[1732077853407,0.8237,3095.7,3095.2,0.96921]
[1732077853613,0.8237,3095.7,3095.3,0.96921]
[1732077853814,0.8237,3095.7,3095.4,0.06576584]
[1732077859749,0.33700764,3095.9,3095.4,1.03492584]
[1732077859953,0.33700764,3095.9,3095.5,0.96914]
[1732077860308,0.33700764,3095.9,3095.6,0.06574892]
[1732077860624,0.33700764,3095.9,3095.5,0.96914]
[1732077860858,0.33700764,3095.9,3095.6,0.06574892]
[1732077861225,0.33700764,3095.9,3095.5,0.96914]
[1732077861448,0.33700764,3095.9,3095.6,0.06574892]
[1732077861860,0.33700764,3095.9,3095.5,0.96914]
[1732077862275,0.33700764,3095.9,3095.6,0.06574892]
[1732077862775,0.33700764,3095.9,3095.5,0.96914]
[1732077862938,0.33700764,3095.9,3095.6,0.06574892]
[1732077864912,0.33700764,3095.9,3095.5,0.96914]
[1732077865262,3.2901724,3095.8,3095.6,0.06573322]
[1732077865425,3.2901724,3095.8,3095.3,0.96921]
[1732077865708,0.0599924,3095.8,3095.4,0.06574542]
[1732077865990,1.02035091,3095.8,3095.4,0.06574542]
[1732077866160,1.02035091,3095.8,3095.4,0.96917]
[1732077866343,1.02035091,3095.8,3095.5,0.06573932]
[1732077866991,1.68575612,3095.9,3095.5,0.06573932]
[1732077867191,1.68575612,3095.9,3095.5,1.03487932]
[1732077867879,1.68575612,3095.9,3095.5,0.06573932]
[1732077868252,0.33700764,3095.9,3095.5,1.03484932]
[1732077868484,0.33700764,3095.9,3095.6,0.96911]
[1732077868869,0.33700764,3095.9,3095.7,0.06574129]
[1732077869795,0.33700764,3095.9,3095.6,0.96911]
[1732077869964,0.33700764,3095.9,3095.7,0.0657393]
[1732077870162,0.58795325,3095.9,3095.2,1.72823]
[1732077870365,0.8082,3095.7,3095.3,1.0349617]
[1732077870568,0.8082,3095.7,3095.3,0.0657617]
[1732077871750,0.8082,3095.7,3095.3,1.0349617]
[1732077872992,0.8082,3095.7,3095.3,0.0657617]
[1732077873156,0.8082,3095.7,3095.3,1.0349717]
[1732077873490,0.8082,3095.7,3095.3,0.0657617]
[1732077874277,4.03849,3095.7,3095.3,0.0657617]
[1732077874463,0.8082,3095.7,3095.3,0.0657617]
[1732077874665,4.0985024,3095.7,3095.3,0.0657617]
[1732077874869,4.99994825,3095.7,3095.3,0.0657617]
[1732077875255,1.76963825,3095.7,3095.3,0.0657617]
[1732077875454,1.76963825,3095.7,3095.2,1.72823]
[1732077875698,0.8681924,3095.7,3095.4,0.06574542]
[1732077875881,0.8082,3095.7,3095.3,0.06575152]
[1732077876082,0.8082,3095.7,3095.5,0.06573932]
[1732077876388,0.8082,3095.7,3095.6,0.06573322]
[1732077876600,1.38661085,3095.7,3095.2,1.72821]
[1732077876764,0.8082,3095.7,3095.3,0.06575152]
[1732077878295,3.23045,3095.6,3095.0,0.96928]
[1732077878502,3.23045,3095.6,3095.4,0.06575049]
[1732077878503,0.8086,3095.5,3095.4,0.06575049]
[1732077878661,0.8086,3095.5,3095.0,0.96928]
[1732077878860,0.8086,3095.5,3095.4,0.06575049]
[1732077879055,0.8086,3095.5,3095.0,0.96928]
[1732077879593,0.8086,3095.5,3095.1,0.06576898]
[1732077883873,0.8086,3095.5,3095.1,1.03502898]
[1732077884562,0.8086,3095.5,3095.1,1.03500898]
[1732077884962,4.04069,3095.8,3095.2,0.83]
[1732077885197,4.04069,3095.8,3095.3,0.06575659]
[1732077886301,4.80146676,3095.8,3095.3,0.06575659]
[1732077886516,4.80146676,3095.8,3095.2,0.83]
[1732077886716,4.80146676,3095.8,3095.4,0.06575049]
[1732077886926,4.80146676,3095.8,3095.3,0.06575659]
[1732077887147,4.80146676,3095.8,3095.5,0.06574439]
[1732077887283,0.83685444,3095.7,3095.4,0.06575049]
[1732077887484,4.04069,3095.8,3095.6,0.06573829]
[1732077887678,4.04069,3095.8,3095.5,0.06574439]
[1732077887924,4.80146676,3095.8,3095.2,1.79923]
[1732077888097,4.80146676,3095.8,3095.2,0.96923]
[1732077888309,4.80146676,3095.8,3095.3,0.06575659]
[1732077890234,0.8105,3095.5,3095.3,0.06575659]
[1732077890392,0.8105,3095.5,3095.0,0.96928]
[1732077890731,4.041,3095.5,3095.1,0.06576405]
[1732077892311,3.80262179,3095.5,3095.1,0.06576405]
[1732077893425,0.57212179,3095.5,3095.1,1.03503405]
[1732077893727,0.57212179,3095.5,3095.2,0.96923]
[1732077894026,0.57212179,3095.5,3095.3,0.06577002]
[1732077894197,3.23029,3095.7,3095.1,0.96927]
[1732077894391,3.23029,3095.7,3095.2,1.86501612]
[1732077894722,3.23029,3095.7,3095.2,2.18185061]
[1732077895290,4.04068,3095.8,3095.2,2.18185061]
[1732077896105,4.04068,3095.8,3095.3,0.9692]
[1732077896593,4.04068,3095.8,3095.4,0.06347467]
[1732077897516,4.04068,3095.8,3095.2,1.14683449]
[1732077897912,4.04068,3095.8,3095.3,0.06347877]
[1732077900593,0.0599924,3095.7,3095.3,0.06347877]
[1732077900904,4.04068,3095.8,3095.3,0.2814351]
[1732077901409,4.04068,3095.8,3095.3,1.18715633]
[1732077901724,4.04068,3095.8,3095.4,0.06346268]
[1732077901928,0.33700764,3095.9,3095.4,1.03261268]
[1732077902113,0.33700764,3095.9,3095.5,1.1911169]
[1732077902421,0.33700764,3095.9,3095.6,0.85466387]
[1732077903102,0.33700764,3095.9,3095.6,0.06346387]
[1732077905833,0.33700764,3095.9,3095.8,0.7912]
[1732077906344,3.22967,3096.3,3095.8,0.85250057]
[1732077906345,3.22977,3096.2,3095.8,0.85250057]
[1732077906686,3.2898624,3096.1,3095.8,0.85250057]
[1732077906915,3.23007,3095.9,3095.8,0.06130057]
[1732077907100,3.2900624,3095.9,3095.8,0.06130057]
[1732077907435,3.2900624,3095.9,3095.3,1.76039]
[1732077907436,3.2900624,3095.9,3095.3,2.72957]
[1732077907598,3.2900624,3095.9,3095.4,0.06132095]
[1732077907789,3.2900624,3095.9,3095.5,0.1821701]
[1732077907989,3.2900624,3095.9,3095.6,0.06130875]
[1732077908191,0.8279,3096.0,3095.5,0.1821701]
[1732077908389,4.05788,3096.0,3095.6,0.06130875]
[1732077909545,0.8279,3096.0,3095.6,0.06130875]
[1732077909844,3.22993,3096.1,3095.6,0.06130875]
[1732077910547,0.7741,3096.2,3095.7,0.7901]
[1732077910708,0.7741,3096.2,3095.7,1.08728089]
[1732077911029,0.7741,3096.2,3095.8,0.06130055]
[1732077911235,0.7741,3096.2,3095.7,1.08728089]
[1732077911545,3.22971,3096.3,3095.8,0.06128945]
[1732077911704,3.22971,3096.3,3095.9,0.21176503]
[1732077911909,3.22971,3096.3,3095.7,2.05636089]
[1732077912111,3.22971,3096.3,3096.0,0.06127402]
[1732077912412,3.22971,3096.3,3096.1,0.06126992]
[1732077912636,3.22971,3096.3,3095.7,2.05636089]
[1732077912820,3.22971,3096.3,3095.8,0.06128203]
[1732077913035,3.22971,3096.3,3095.8,0.21176429]
[1732077913231,3.22971,3096.3,3095.9,0.06127269]
[1732077914312,0.7741,3096.4,3095.9,0.06127269]
[1732077914514,4.00367,3096.4,3095.9,0.06127269]
[1732077915452,3.2896824,3096.3,3095.9,0.06127269]
[1732077915651,3.2896824,3096.3,3095.8,1.18080429]
[1732077915949,3.2896824,3096.3,3095.9,0.06123901]
[1732077916248,3.2896824,3096.3,3095.8,1.18080429]
[1732077916449,3.2896824,3096.3,3095.9,0.06123901]
[1732077916620,3.2896824,3096.3,3095.9,0.26445334]
[1732077917023,3.22977,3096.2,3095.9,0.26445334]
[1732077917209,3.2898624,3096.1,3095.9,0.06123901]
[1732077917410,0.0599924,3096.1,3095.7,0.7901]
[1732077917642,3.2898424,3096.2,3095.8,0.23716472]
[1732077917858,2.12284848,3096.1,3095.5,0.96913]
[1732077918043,0.0599924,3096.0,3095.6,0.06125592]
[1732077918607,0.7741,3096.1,3095.6,0.06125592]
[1732077918812,4.00398,3096.1,3095.6,0.06125592]
[1732077919108,0.0599924,3096.0,3095.6,0.06125592]
[1732077922956,3.23028,3095.7,3095.6,0.06125592]
[1732077923256,3.23028,3095.7,3095.2,0.33368878]
[1732077923257,0.7741,3095.7,3095.2,0.96923]
[1732077923557,0.7741,3095.7,3095.3,0.06127559]
[1732077923927,0.7741,3095.7,3095.2,0.96923]
[1732077924144,4.00439,3095.7,3095.2,0.30622588]
[1732077924539,4.00439,3095.7,3095.3,0.06130012]
[1732077924540,0.7741,3095.7,3095.3,0.06130012]
[1732077924846,0.7741,3095.7,3095.2,1.27546588]
[1732077925035,0.7741,3095.7,3095.3,0.06130012]
[1732077925351,0.7741,3095.7,3095.2,1.27546588]
[1732077925545,0.7741,3095.7,3095.2,0.30622588]
[1732077925789,4.00441,3095.7,3095.3,0.06130042]
[1732077926146,0.7741,3095.7,3095.1,0.7901]
[1732077926363,3.23045,3095.6,3095.1,0.7901]
[1732077926540,3.23045,3095.6,3095.2,0.06130038]
[1732077927477,0.7741,3095.7,3095.2,1.03054038]
[1732077927772,0.7741,3095.7,3095.2,1.21260742]
[1732077928234,4.0437,3095.9,3095.3,0.9692]
[1732077928432,0.8136,3095.9,3095.5,0.7878]
[1732077928672,3.56696138,3096.0,3095.6,0.06128722]
[1732077930054,3.2301,3095.9,3095.6,0.06128722]
[1732077930383,3.2301,3095.9,3095.5,0.7878]
[1732077930866,3.56696138,3096.0,3095.5,0.7878]
[1732077931158,3.56696138,3096.0,3095.3,0.7878]
[1732077931159,3.23018,3095.8,3095.3,0.7878]
[1732077931363,3.2901724,3095.8,3095.3,0.7878]
[1732077931574,3.2901724,3095.8,3095.4,0.06129632]
[1732077931875,3.23028,3095.7,3095.4,0.06129632]
[1732077932086,3.23018,3095.8,3095.4,0.06129632]
[1732077932243,3.23018,3095.8,3095.3,0.7878]
[1732077932244,0.0599924,3095.7,3095.3,0.7878]
[1732077932439,0.0599924,3095.7,3095.4,0.06129724]
[1732077933087,4.57923848,3095.5,3094.8,1.12160771]
[1732077933385,3.23071,3095.3,3094.9,0.05927147]
[1732077933743,3.23071,3095.3,3094.8,0.7878]
[1732077934064,3.23071,3095.3,3094.9,0.05928882]
[1732077934265,3.23071,3095.3,3094.8,0.7878]
[1732077934266,0.0599924,3095.2,3094.8,0.7878]
[1732077934451,0.8735924,3095.2,3094.9,0.05928863]
[1732077934655,0.8735924,3095.2,3094.6,1.75721]
[1732077934985,0.8735924,3095.2,3094.7,0.05927644]
[1732077935340,3.23097,3095.1,3094.7,0.05927644]
[1732077935666,3.2910124,3095.0,3094.7,0.05927644]
[1732077935868,3.23097,3095.1,3094.7,0.05927644]
[1732077935869,3.2312,3094.9,3094.7,0.05927644]
[1732077936071,3.2312,3094.9,3094.4,0.7878]
[1732077936241,3.2312,3094.9,3094.5,0.05933707]
[1732077936765,3.23094,3095.1,3094.5,0.05933707]
[1732077936960,3.23094,3095.1,3094.4,1.75729]
[1732077937180,3.23094,3095.1,3094.6,0.05934641]
[1732077937341,3.23094,3095.1,3094.5,0.27268]
[1732077937342,3.23094,3095.1,3094.5,0.33203665]
[1732077937540,6.46195,3095.1,3094.7,0.05934444]
[1732077937776,6.46195,3095.1,3094.6,0.05933225]
[1732077937985,6.46195,3095.1,3094.8,0.05932004]
[1732077938277,6.46195,3095.1,3094.4,2.02997]
[1732077938479,6.46195,3095.1,3094.5,0.05933836]
[1732077939482,3.23107,3095.0,3094.5,0.05933836]
[1732077942182,0.8136,3095.2,3094.5,1.02879836]
[1732077942386,3.23092,3095.1,3094.5,1.02879836]
[1732077942760,3.23101,3095.0,3094.5,1.02879836]
[1732077943873,3.23092,3095.1,3094.5,1.02879836]
[1732077946951,3.23092,3095.1,3094.5,1.99822836]
[1732077947281,3.23092,3095.1,3094.5,1.02876836]
[1732077949665,6.46193,3095.1,3094.5,1.02876836]
[1732077949859,3.23092,3095.1,3094.5,1.02876836]
[1732077952780,3.23092,3095.1,3094.5,0.05933836]
[1732077952981,3.23107,3095.0,3094.5,0.05933836]
[1732077953565,3.23112,3094.9,3094.5,0.05933836]
[1732077953769,3.23121,3094.9,3094.5,0.05933836]
[1732077953982,3.23101,3095.0,3094.5,0.05933836]
[1732077954194,3.23113,3094.9,3094.5,0.05933836]
[1732077954387,3.23101,3095.0,3094.5,0.05933836]
[1732077954861,3.23112,3094.9,3094.5,0.05933836]
[1732077955100,3.23101,3095.0,3094.5,0.05933836]
[1732077956883,6.46211,3095.0,3094.5,0.05933836]
[1732077957419,3.23101,3095.0,3094.5,0.05933836]
[1732077957633,3.23116,3094.9,3094.5,0.05933836]
[1732077960217,3.23103,3095.0,3094.5,0.05933836]
[1732077960925,3.23103,3095.0,3094.5,1.02879836]
[1732077961207,3.23103,3095.0,3094.5,0.05933836]
[1732077962210,4.04446,3095.2,3094.6,0.8029]
[1732077962547,3.23099,3095.1,3094.6,0.8029]
[1732077962735,3.23104,3095.0,3094.6,0.8029]
[1732077963196,0.3369858,3095.1,3094.7,0.05940406]
[1732077964396,3.5679058,3095.1,3094.7,0.05940406]
[1732077966000,0.3369858,3095.1,3094.7,1.02879406]
[1732077966196,0.3369858,3095.1,3094.8,0.8029]
[1732077966425,3.23076,3095.3,3094.8,0.862288]
[1732077967099,3.23076,3095.3,3094.8,0.8029]
[1732077967623,3.23082,3095.2,3094.8,0.8029]
[1732077967832,3.23082,3095.2,3094.9,0.05937873]
[1732077968013,3.23101,3095.0,3094.9,0.05937873]
[1732077968197,3.23101,3095.0,3094.8,0.8029]
[1732077968198,3.23116,3094.9,3094.5,0.8029]
[1732077968703,3.23116,3094.9,3094.6,0.05939249]
[1732077970341,3.23116,3094.9,3094.5,0.8029]
[1732077970551,3.23116,3094.9,3094.6,0.0593975]
[1732077971849,0.8012,3095.0,3094.6,0.0593975]
[1732077972018,6.46195,3095.1,3094.6,0.24257625]
[1732077972347,3.23095,3095.1,3094.6,0.18317875]
[1732077972505,3.23095,3095.1,3094.7,0.0594138]
[1732077972705,3.23095,3095.1,3094.5,1.77234]
[1732077973048,3.23095,3095.1,3094.6,0.0594199]
[1732077975145,3.23074,3095.3,3094.7,0.8214]
[1732077975345,3.23074,3095.3,3094.8,0.05939069]
[1732077975517,3.23074,3095.3,3094.7,0.8214]
[1732077975713,3.23074,3095.3,3094.8,0.05939069]
[1732077975920,3.23081,3095.2,3094.7,0.8214]
[1732077976121,3.23095,3095.1,3094.7,0.8214]
[1732077976322,3.23095,3095.1,3094.8,0.05938869]
[1732077976643,3.23095,3095.1,3094.7,0.8214]
[1732077976851,3.23095,3095.1,3094.9,0.05938059]
[1732077977012,3.23095,3095.1,3094.8,0.05938669]
[1732077977210,3.23095,3095.1,3094.7,0.8214]
[1732077977408,3.23095,3095.1,3094.9,0.05938059]
[1732077977614,3.23095,3095.1,3094.7,0.8214]
[1732077977815,3.23095,3095.1,3095.0,0.05937249]
[1732077978030,3.23095,3095.1,3094.7,0.8214]
[1732077978224,3.23095,3095.1,3095.0,0.05937249]
[1732077978450,3.23095,3095.1,3094.7,0.8214]
[1732077978657,3.23095,3095.1,3095.0,0.05937249]
[1732077978857,3.23095,3095.1,3094.7,0.8214]
[1732077979046,3.23095,3095.1,3095.0,0.05937217]
[1732077979245,3.23095,3095.1,3094.7,0.8214]
[1732077979419,3.23095,3095.1,3095.0,0.05938848]
[1732077979614,3.23095,3095.1,3094.7,0.8214]
[1732077979835,3.23095,3095.1,3095.0,0.05937217]
[1732077980058,3.23095,3095.1,3094.7,0.8214]
[1732077980253,3.23095,3095.1,3095.0,0.0593842]
[1732077981057,3.23095,3095.1,3095.0,0.05938021]
[1732077981560,3.23095,3095.1,3094.7,0.8214]
[1732077981912,3.23095,3095.1,3094.8,0.05939042]
[1732077982356,3.23095,3095.1,3094.7,0.8214]
[1732077982558,3.23095,3095.1,3094.8,0.05938842]
[1732077982744,3.23095,3095.1,3094.7,0.8214]
[1732077982949,3.23095,3095.1,3094.8,0.05938842]
[1732077983469,3.23095,3095.1,3094.9,0.05938231]
[1732077983865,3.23112,3094.9,3094.7,0.8214]
[1732077984066,3.23112,3094.9,3094.5,0.8224]
[1732077984875,0.0599924,3094.8,3094.3,0.3339358]
[1732077985168,0.0599924,3094.8,3094.1,0.7543]
[1732077985169,6.46303,3094.6,3094.1,0.7543]
[1732077985368,3.2915524,3094.5,3094.1,0.7543]
[1732077986670,3.2915524,3094.5,3093.9,1.30361514]
[1732077986829,3.2915524,3094.5,3093.9,2.05791514]
[1732077987031,3.2915524,3094.5,3093.9,2.36067665]
[1732077988185,3.2915524,3094.5,3093.9,2.02668151]
[1732077988471,3.2915524,3094.5,3094.0,0.96961]
[1732077989566,3.23135,3094.7,3094.1,0.7543]
[1732077989766,3.2915024,3094.6,3094.1,0.7543]
[1732077992046,6.5230324,3094.6,3094.1,0.7543]
[1732077992247,3.23151,3094.6,3094.1,0.7543]
[1732077992489,3.2915324,3094.5,3094.1,0.7543]
[1732077992787,3.23154,3094.5,3094.1,0.7543]
[1732077993313,3.2916324,3094.4,3094.1,0.7543]
[1732077993584,3.2916324,3094.4,3093.8,0.7543]
[1732077993585,3.23185,3094.2,3093.8,0.7543]
[1732077993787,6.4638,3094.2,3093.8,0.7543]
[1732077994246,3.2319,3094.2,3093.8,0.7543]
[1732077994452,6.46385,3094.2,3093.8,0.7543]
[1732077995157,3.23196,3094.1,3093.8,0.7543]
[1732077995886,3.23194,3094.2,3093.8,0.7543]
[1732077996110,3.23168,3094.4,3093.8,0.926703]
[1732077996393,3.23168,3094.4,3093.8,1.896363]
[1732077996747,3.23186,3094.2,3093.8,0.926703]
[1732077996992,3.23186,3094.2,3093.8,0.7543]
[1732077998587,3.23168,3094.4,3093.8,0.7543]
[1732077998889,3.23182,3094.3,3093.8,0.7543]
[1732077999393,3.23168,3094.4,3093.9,0.05948013]
[1732077999699,3.23185,3094.2,3093.9,0.05948013]
[1732077999902,3.23185,3094.2,3093.8,0.7543]
[1732078000104,3.23168,3094.4,3094.0,0.05947402]
[1732078000399,3.23168,3094.4,3093.9,0.05948013]
[1732078000400,3.23176,3094.3,3093.9,0.05948013]
[1732078000598,3.23176,3094.3,3093.8,0.7543]
[1732078000966,3.23176,3094.3,3093.9,0.05948013]
[1732078001298,3.23176,3094.3,3093.8,0.7543]
[1732078001668,3.23176,3094.3,3093.9,0.05949426]
[1732078001867,3.23176,3094.3,3093.8,0.7543]
[1732078002068,3.23176,3094.3,3094.0,0.05948816]
[1732078002296,3.23176,3094.3,3093.8,0.7543]
[1732078002677,3.23176,3094.3,3093.9,0.05949426]
[1732078002852,3.23176,3094.3,3093.8,0.7543]
[1732078003066,3.23176,3094.3,3094.0,0.05948816]
[1732078003269,3.23176,3094.3,3093.8,0.7543]
[1732078003496,3.23176,3094.3,3094.1,0.05948205]
[1732078003717,3.23176,3094.3,3093.8,0.7543]
[1732078004077,3.23176,3094.3,3093.9,0.05949461]
[1732078004301,3.23176,3094.3,3093.8,0.7543]
[1732078004819,3.23176,3094.3,3093.9,0.05951083]
[1732078005021,3.23176,3094.3,3093.8,0.7543]
[1732078005191,3.23176,3094.3,3094.0,0.05950273]
[1732078005385,3.23176,3094.3,3093.8,0.7543]
[1732078005615,3.23176,3094.3,3093.8,1.72397]
[1732078005818,3.23176,3094.3,3093.9,0.05951083]
[1732078005992,3.23176,3094.3,3093.8,1.72397]
[1732078006192,3.23176,3094.3,3094.0,0.05949227]
[1732078006392,3.23154,3094.5,3093.9,0.96964]
[1732078006615,3.23154,3094.5,3094.0,0.7668]
[1732078006924,3.23154,3094.5,3094.0,0.82629279]
[1732078007126,0.7936,3094.7,3094.0,1.00588607]
[1732078007327,0.33701571,3094.8,3094.2,0.7668]
[1732078007528,0.33701571,3094.8,3094.6,0.96942]
[1732078007736,3.23082,3095.2,3094.6,1.239991]
[1732078008033,3.23082,3095.2,3094.7,0.8262388]
[1732078012569,4.57937848,3095.4,3094.7,0.8262388]
[1732078012858,3.23063,3095.4,3094.8,0.96936]
[1732078013031,3.23063,3095.4,3094.8,1.02872976]
[1732078013226,3.23063,3095.4,3094.8,0.96936]
[1732078013646,3.23052,3095.5,3094.9,1.73612]
[1732078014013,3.23052,3095.5,3095.0,1.02866889]
[1732078014346,1.34874848,3095.6,3095.0,1.02866889]
[1732078014522,4.57914848,3095.6,3095.0,1.02866889]
[1732078015233,3.2304,3095.6,3095.0,1.99794889]
[1732078015435,3.2304,3095.6,3095.1,1.73607]
[1732078015817,3.0,3095.7,3095.1,1.73607]
[1732078016022,3.0,3095.7,3095.2,0.05930273]
[1732078016653,6.2303,3095.7,3095.2,0.05930273]
[1732078016958,3.2303,3095.7,3095.2,0.05930273]
[1732078017148,3.2303,3095.7,3095.1,1.73607]
[1732078018332,0.02,3096.5,3095.1,1.03734]
[1732078018333,3.22999,3096.0,3095.1,1.03734]
[1732078018536,3.22999,3096.0,3095.4,0.7668]
[1732078018834,3.2301,3095.9,3095.4,0.7668]
[1732078019345,3.2301,3095.9,3095.5,0.0592917]
[1732078019755,3.22999,3096.0,3095.5,0.0592917]
[1732078020351,3.23012,3095.9,3095.5,0.0592917]
[1732078020872,3.2902424,3095.8,3095.5,0.0592917]
[1732078021114,3.23039,3095.6,3095.5,0.0592917]
[1732078021390,2.16424848,3095.7,3095.2,0.7668]
[1732078021586,0.8155,3095.7,3095.5,0.05928714]
[1732078021732,0.8155,3095.7,3095.2,0.7668]
[1732078021936,0.8155,3095.7,3095.6,0.05928104]
[1732078022138,0.54544909,3095.7,3095.2,1.73603]
[1732078022439,3.23025,3095.8,3095.2,1.73603]
[1732078022672,3.23025,3095.8,3095.3,0.05930344]
[1732078022837,2.16424848,3095.9,3095.3,0.05930344]
[1732078023037,2.16424848,3095.9,3095.3,0.9692]
[1732078023241,5.39432848,3095.9,3095.4,0.05929734]
[1732078023538,4.57882848,3095.9,3095.4,1.02846734]
[1732078023785,4.57882848,3095.9,3095.4,0.96917]
[1732078024077,4.57882848,3095.9,3095.5,0.7668]
[1732078024271,0.0599924,3095.8,3095.5,0.7668]
[1732078024474,0.0599924,3095.8,3095.6,0.05926241]
[1732078024979,3.2902324,3095.8,3095.6,0.05926241]
[1732078025281,4.04578,3095.7,3095.1,0.7668]
[1732078025485,3.23039,3095.6,3095.1,0.7668]
[1732078025740,3.23039,3095.6,3095.2,0.05927718]
[1732078026844,5.39452848,3095.7,3095.2,0.05927718]
[1732078027541,3.23039,3095.6,3095.2,0.05927718]
[1732078027744,6.0893165,3095.7,3095.2,0.05927718]
[1732078028141,9.3196965,3095.7,3095.2,0.05927718]
[1732078028870,4.74056802,3095.7,3095.2,0.05927718]
[1732078029648,3.23046,3095.6,3095.2,0.05927718]
[1732078030218,4.63925088,3095.5,3095.2,0.05927718]
[1732078030461,3.2307,3095.3,3095.2,0.05927718]
[1732078030614,5.43854088,3095.3,3095.2,0.05927718]
[1732078030815,3.23092,3095.1,3094.8,0.8223]
[1732078031053,3.23092,3095.1,3094.6,0.8223]
[1732078031054,3.2909124,3095.1,3094.6,0.8223]
[1732078031262,3.2909124,3095.1,3094.9,0.05931711]
[1732078031566,0.0599924,3095.1,3094.6,1.79172]
[1732078031768,0.0599924,3095.2,3095.0,0.05931283]
[1732078031913,3.2908224,3095.2,3094.6,1.79172]
[1732078032114,3.2908224,3095.2,3095.1,0.05930154]
[1732078032337,3.23091,3095.1,3094.6,0.8223]
[1732078032543,4.57994848,3094.9,3094.4,0.8223]
[1732078032745,0.0599924,3094.8,3094.4,0.8223]
[1732078033189,3.2912524,3094.8,3094.4,0.8223]
[1732078033656,5.37879848,3095.1,3094.4,1.79179]
[1732078033863,3.22978,3096.2,3094.6,0.96942]
[1732078033864,3.23081,3095.2,3094.6,0.96942]
[1732078034032,3.23081,3095.2,3094.7,0.8223]
[1732078034444,3.23081,3095.2,3094.7,1.79169]
[1732078034637,0.8590924,3095.4,3094.7,1.79169]
[1732078034956,4.57930848,3095.5,3094.7,1.79169]
[1732078035173,3.23077,3095.3,3094.7,1.79169]
[1732078036724,3.23077,3095.3,3094.7,0.8223]
[1732078037006,0.0599924,3095.2,3094.7,0.8223]
[1732078037601,3.23092,3095.1,3094.7,0.8223]
[1732078037768,0.0599924,3095.0,3094.7,0.8223]
[1732078038493,0.0599924,3095.0,3094.8,0.05935536]
[1732078038659,0.0599924,3095.0,3094.7,0.8223]
[1732078042374,0.0599924,3095.0,3094.4,0.8223]
[1732078042572,3.23119,3094.9,3094.5,0.05738532]
[1732078043157,3.23093,3095.1,3094.5,1.02684532]
[1732078043354,3.23107,3095.0,3094.5,0.05738532]
[1732078043803,3.23073,3095.3,3094.6,0.8223]
[1732078044116,4.0896324,3095.5,3094.8,0.8223]
[1732078044273,3.23067,3095.4,3094.8,1.79165]
[1732078044485,3.23063,3095.4,3094.9,0.8223]
[1732078044695,3.23063,3095.4,3094.9,0.87967293]
[1732078044873,3.23078,3095.3,3094.9,0.8223]
[1732078045208,3.2908124,3095.2,3095.0,0.05736798]
[1732078046115,3.23091,3095.1,3095.0,0.05736798]
[1732078046317,3.96119224,3095.1,3094.6,0.7891]
[1732078046621,3.2909024,3095.1,3094.6,1.75852]
[1732078046821,3.2909024,3095.1,3094.7,0.05740245]
[1732078046988,0.0599924,3095.1,3094.7,0.05740245]
[1732078047491,0.0599924,3095.2,3094.7,0.05740245]
[1732078048319,4.01187,3095.3,3094.7,0.05740245]
[1732078048320,0.7811,3095.3,3094.7,0.2389947]
[1732078048486,4.01182,3095.3,3094.7,0.2389947]
[1732078049618,3.2908124,3095.2,3094.7,0.2389947]
[1732078049813,3.2908124,3095.2,3094.7,0.05740245]
[1732078050313,3.23093,3095.1,3094.7,0.05740245]
[1732078050520,3.23082,3095.2,3094.7,0.05740245]
[1732078050817,0.0599924,3095.1,3094.7,0.05740245]
[1732078053278,3.23082,3095.2,3094.7,1.2083747]
[1732078054430,3.2307,3095.3,3094.7,1.2083847]
[1732078055022,4.01167,3095.5,3094.8,0.96936]
[1732078055219,3.23061,3095.4,3094.9,0.84648472]
[1732078055794,3.23061,3095.4,3094.9,0.7891]
[1732078056735,3.23077,3095.3,3094.9,0.7891]
[1732078058507,0.0599924,3095.2,3094.9,0.7891]
[1732078059008,0.0599924,3095.2,3095.0,0.05737315]
[1732078060068,3.23092,3095.1,3095.0,0.05737315]
[1732078060409,3.23092,3095.1,3094.9,0.7891]
[1732078061112,0.0599924,3095.2,3094.9,0.7891]
[1732078061348,3.2908024,3095.2,3094.9,0.7891]
[1732078061550,3.2908024,3095.2,3095.0,0.05737359]
[1732078061855,3.2908024,3095.2,3094.9,0.7891]
[1732078064354,0.7858,3095.1,3094.5,0.8173]
[1732078064562,3.23107,3095.0,3094.5,0.8173]
[1732078064729,3.23107,3095.0,3094.6,0.05740464]
[1732078065073,4.01679,3095.1,3094.6,0.05740464]
[1732078065074,3.23099,3095.1,3094.6,0.05740464]
[1732078067985,6.46199,3095.1,3094.6,0.05740464]
[1732078068189,3.23099,3095.1,3094.6,0.05740464]
[1732078068491,3.23113,3094.9,3094.6,0.05740464]
[1732078073789,3.23124,3094.8,3094.6,0.05740464]
[1732078075858,3.23133,3094.7,3094.6,0.05740464]
[1732078078476,3.23113,3094.9,3094.6,0.05740464]
[1732078079178,3.2313,3094.8,3094.6,0.05740464]
[1732078079973,3.99663,3095.0,3094.6,0.05740464]
[1732078080173,3.23118,3094.9,3094.6,0.05740464]
[1732078080492,3.23095,3095.1,3094.6,0.05740464]
[1732078080849,3.23088,3095.2,3094.6,0.05740464]
[1732078081351,3.23102,3095.0,3094.6,0.05740464]
[1732078081750,6.4617,3095.2,3094.6,0.05740464]
[1732078081993,6.46173,3095.2,3094.5,1.78675]
[1732078082293,3.23082,3095.2,3094.6,1.02679073]
[1732078082676,3.23082,3095.2,3094.7,0.96938]
[1732078082883,3.23065,3095.4,3094.8,0.96935]